[Event "Live Chess"]
[Site "Chess.com"]
[Date "2024.06.01"]
[Round "-"]
[White "defenderalist"]
[Black "Berdgross"]
[Result "1-0"]
[WhiteElo "1496"]
[BlackElo "592"]
[TimeControl "300"]
[EndTime "10:29:02 PDT"]
[Termination "defenderalist won by resignation"]

1. e4 {[%clk 0:04:44.8]} 1... e5 {[%clk 0:04:58.4]} 2. f4 {[%clk 0:04:43.5]}
2... d6 {[%clk 0:04:57.9]} 3. Nf3 {[%clk 0:04:34.1]} 3... exf4 {[%clk
0:04:55.6]} 4. d4 {[%clk 0:04:32.5]} 4... Bg4 {[%clk 0:04:51.6]} 5. Bxf4 {[%clk
0:04:30.8]} 5... Bxf3 {[%clk 0:04:50.5]} 6. Qxf3 {[%clk 0:04:29.6]} 6... Nc6
{[%clk 0:04:48.4]} 7. c3 {[%clk 0:04:24.7]} 7... Be7 {[%clk 0:04:42]} 8. Bb5
{[%clk 0:04:20.8]} 8... Qd7 {[%clk 0:04:37.2]} 9. d5 {[%clk 0:04:18]} 9... Ne5
{[%clk 0:04:07.8]} 10. Bxd7+ {[%clk 0:04:14.4]} 10... Nxd7 {[%clk 0:04:06.8]}
11. O-O {[%clk 0:04:12.5]} 11... Ngf6 {[%clk 0:04:01]} 12. Bg5 {[%clk
0:04:04.7]} 12... O-O {[%clk 0:04:00.9]} 13. Bxf6 {[%clk 0:04:01.5]} 13... Bxf6
{[%clk 0:03:58.3]} 14. Nd2 {[%clk 0:04:00]} 14... Ne5 {[%clk 0:03:56.9]} 15. Qg3
{[%clk 0:03:55.9]} 15... a6 {[%clk 0:03:49.7]} 16. Rxf6 {[%clk 0:03:54.1]} 1-0

[Event "Live Chess"]
[Site "Chess.com"]
[Date "2024.06.01"]
[Round "-"]
[White "DavrosLight"]
[Black "NeilDruggan73"]
[Result "0-1"]
[WhiteElo "764"]
[BlackElo "1752"]
[TimeControl "300"]
[EndTime "10:29:05 PDT"]
[Termination "NeilDruggan73 won by resignation"]

1. e4 {[%clk 0:04:58.4]} 1... d6 {[%clk 0:04:58.7]} 2. Nc3 {[%clk 0:04:52.9]}
2... Nf6 {[%clk 0:04:57.3]} 3. Nf3 {[%clk 0:04:39.3]} 3... g6 {[%clk 0:04:55.9]}
4. Bc4 {[%clk 0:04:30.8]} 4... Bg7 {[%clk 0:04:54.6]} 5. O-O {[%clk 0:04:26.7]}
5... Nxe4 {[%clk 0:04:46.4]} 6. Nxe4 {[%clk 0:04:23.2]} 6... d5 {[%clk
0:04:45.4]} 7. Bxd5 {[%clk 0:04:02.5]} 7... Qxd5 {[%clk 0:04:43.3]} 8. Re1
{[%clk 0:03:54.8]} 8... O-O {[%clk 0:04:39.4]} 9. Qe2 {[%clk 0:03:40.4]} 9...
Nc6 {[%clk 0:04:36.7]} 10. c4 {[%clk 0:03:28.8]} 10... Qd8 {[%clk 0:04:17.1]}
11. Neg5 {[%clk 0:03:02.4]} 11... Bg4 {[%clk 0:03:56.9]} 12. h3 {[%clk
0:02:57.2]} 12... Bf5 {[%clk 0:03:51.7]} 13. Rb1 {[%clk 0:02:46.2]} 13... Bxb1
{[%clk 0:03:46.4]} 14. d3 {[%clk 0:02:24.2]} 14... h6 {[%clk 0:03:37.9]} 15. Ne4
{[%clk 0:02:15.1]} 15... Qxd3 {[%clk 0:03:36.7]} 16. Qxd3 {[%clk 0:02:04]} 16...
Bxd3 {[%clk 0:03:35.1]} 0-1

[Event "Live Chess"]
[Site "Chess.com"]
[Date "2024.06.01"]
[Round "-"]
[White "SergiiA"]
[Black "Zhevzh1k7"]
[Result "1-0"]
[WhiteElo "1551"]
[BlackElo "1083"]
[TimeControl "300"]
[EndTime "10:29:06 PDT"]
[Termination "SergiiA won by resignation"]

1. c4 {[%clk 0:04:59]} 1... Nf6 {[%clk 0:04:58.4]} 2. Nc3 {[%clk 0:04:58.2]}
2... e6 {[%clk 0:04:56.7]} 3. d4 {[%clk 0:04:57.3]} 3... d5 {[%clk 0:04:42.3]}
4. Nf3 {[%clk 0:04:53.2]} 4... Nc6 {[%clk 0:04:38.9]} 5. Bg5 {[%clk 0:04:49]}
5... Be7 {[%clk 0:04:33.4]} 6. e3 {[%clk 0:04:48.2]} 6... O-O {[%clk 0:04:30.8]}
7. Bd3 {[%clk 0:04:45.4]} 7... dxc4 {[%clk 0:04:09.8]} 8. Bxc4 {[%clk
0:04:26.7]} 8... Na5 {[%clk 0:04:04.1]} 9. Bd3 {[%clk 0:04:19.4]} 9... Nd5
{[%clk 0:03:59.6]} 10. Nxd5 {[%clk 0:04:05.4]} 10... exd5 {[%clk 0:03:49.5]} 11.
Bxe7 {[%clk 0:03:57.9]} 11... Qxe7 {[%clk 0:03:31.9]} 12. h3 {[%clk 0:03:56]}
12... Be6 {[%clk 0:03:12.2]} 13. O-O {[%clk 0:03:47.7]} 13... c5 {[%clk
0:03:06.6]} 14. dxc5 {[%clk 0:03:42]} 14... Qxc5 {[%clk 0:03:02.4]} 15. a3
{[%clk 0:03:35.8]} 15... Nc6 {[%clk 0:03:01.2]} 16. b4 {[%clk 0:03:34.5]} 16...
Qb6 {[%clk 0:02:59.3]} 17. Rc1 {[%clk 0:03:25.2]} 17... Rac8 {[%clk 0:02:57.5]}
18. Ng5 {[%clk 0:03:17.6]} 18... h6 {[%clk 0:02:48.3]} 19. Nf3 {[%clk
0:03:11.4]} 19... d4 {[%clk 0:02:44.4]} 20. exd4 {[%clk 0:02:58.7]} 20... Nxd4
{[%clk 0:02:44.3]} 21. Bh7+ {[%clk 0:02:51.3]} 21... Kxh7 {[%clk 0:02:37.8]} 22.
Qxd4 {[%clk 0:02:50.3]} 22... Qxd4 {[%clk 0:02:34]} 23. Nxd4 {[%clk 0:02:49.6]}
23... Rxc1 {[%clk 0:02:30.4]} 24. Rxc1 {[%clk 0:02:47.1]} 24... Rd8 {[%clk
0:02:18.3]} 25. Nxe6 {[%clk 0:02:43.6]} 25... fxe6 {[%clk 0:02:16.8]} 26. Rc7
{[%clk 0:02:42]} 26... Rb8 {[%clk 0:02:13.4]} 27. Re7 {[%clk 0:02:40.7]} 27...
b5 {[%clk 0:02:05.9]} 28. Rxe6 {[%clk 0:02:37.9]} 28... Rd8 {[%clk 0:02:00.1]}
29. Ra6 {[%clk 0:02:35.8]} 29... Rd1+ {[%clk 0:01:56.9]} 30. Kh2 {[%clk
0:02:34.2]} 30... Rd7 {[%clk 0:01:55.1]} 31. g4 {[%clk 0:02:27.2]} 31... g6
{[%clk 0:01:53.5]} 32. f3 {[%clk 0:02:26.4]} 32... h5 {[%clk 0:01:51.5]} 33.
gxh5 {[%clk 0:02:23.3]} 33... gxh5 {[%clk 0:01:50.6]} 34. Kg3 {[%clk 0:02:22.8]}
34... Rg7+ {[%clk 0:01:39.2]} 35. Kh4 {[%clk 0:02:18.2]} 35... Rf7 {[%clk
0:01:34.4]} 36. Kg3 {[%clk 0:02:16]} 36... Rg7+ {[%clk 0:01:32.7]} 37. Kf2
{[%clk 0:02:15.5]} 37... h4 {[%clk 0:01:30.9]} 38. f4 {[%clk 0:02:10.8]} 38...
Rg3 {[%clk 0:01:27.9]} 39. Rxa7+ {[%clk 0:02:08.4]} 39... Kg6 {[%clk 0:01:24.6]}
40. Ra5 {[%clk 0:02:06.3]} 40... Rxh3 {[%clk 0:01:20.2]} 41. Rxb5 {[%clk
0:02:05]} 41... Rxa3 {[%clk 0:01:18.6]} 42. Rg5+ {[%clk 0:02:01.5]} 42... Kf6
{[%clk 0:01:16.9]} 43. b5 {[%clk 0:01:59]} 43... Rb3 {[%clk 0:01:12.1]} 44. Rh5
{[%clk 0:01:51.2]} 44... h3 {[%clk 0:01:07.8]} 45. Kg1 {[%clk 0:01:48.2]} 45...
h2+ {[%clk 0:01:03.8]} 46. Kxh2 {[%clk 0:01:46.9]} 46... Kg6 {[%clk 0:01:03]}
47. Re5 {[%clk 0:01:43.7]} 47... Kf6 {[%clk 0:01:02.1]} 48. Rc5 {[%clk 0:01:41]}
48... Ke6 {[%clk 0:01:00.8]} 49. Kg2 {[%clk 0:01:38.9]} 49... Kd6 {[%clk
0:00:59.6]} 50. Rg5 {[%clk 0:01:36.6]} 50... Kc7 {[%clk 0:00:58.5]} 51. Re5
{[%clk 0:01:31]} 51... Kb6 {[%clk 0:00:57.1]} 52. f5 {[%clk 0:01:28.7]} 52...
Kc7 {[%clk 0:00:50.8]} 53. f6 {[%clk 0:01:26]} 53... Rb4 {[%clk 0:00:46.8]} 54.
Rf5 {[%clk 0:01:15.3]} 54... Kd7 {[%clk 0:00:43.1]} 55. f7 {[%clk 0:01:13.5]}
55... Rb2+ {[%clk 0:00:38.2]} 56. Kf3 {[%clk 0:01:09.7]} 56... Rb4 {[%clk
0:00:37]} 57. f8=Q {[%clk 0:01:08.2]} 57... Rb3+ {[%clk 0:00:35.6]} 58. Kg4
{[%clk 0:01:05.8]} 58... Rb4+ {[%clk 0:00:34.3]} 59. Qxb4 {[%clk 0:01:03.1]} 1-0

[Event "Live Chess"]
[Site "Chess.com"]
[Date "2024.06.01"]
[Round "-"]
[White "Sacbutt"]
[Black "Bob2pen"]
[Result "1/2-1/2"]
[WhiteElo "2367"]
[BlackElo "1858"]
[TimeControl "300"]
[EndTime "10:29:20 PDT"]
[Termination "Game drawn by repetition"]

1. d4 {[%clk 0:04:57.8]} 1... Nf6 {[%clk 0:04:58.5]} 2. c4 {[%clk 0:04:57]} 2...
c5 {[%clk 0:04:57.5]} 3. d5 {[%clk 0:04:55.9]} 3... e6 {[%clk 0:04:56.7]} 4. Nc3
{[%clk 0:04:54.8]} 4... exd5 {[%clk 0:04:55.9]} 5. cxd5 {[%clk 0:04:54.7]} 5...
d6 {[%clk 0:04:55.2]} 6. e4 {[%clk 0:04:54.3]} 6... g6 {[%clk 0:04:53.8]} 7. h3
{[%clk 0:04:51.2]} 7... Bg7 {[%clk 0:04:52.4]} 8. Nf3 {[%clk 0:04:50.7]} 8...
O-O {[%clk 0:04:51.3]} 9. Bd3 {[%clk 0:04:50.1]} 9... b5 {[%clk 0:04:48.4]} 10.
Bxb5 {[%clk 0:04:46.6]} 10... Nxe4 {[%clk 0:04:43.3]} 11. Nxe4 {[%clk
0:04:40.4]} 11... Qa5+ {[%clk 0:04:40.8]} 12. Nc3 {[%clk 0:04:20.4]} 12... Bxc3+
{[%clk 0:04:31]} 13. bxc3 {[%clk 0:04:20.3]} 13... Qxb5 {[%clk 0:04:30]} 14. Qe2
{[%clk 0:04:14.1]} 14... Qxe2+ {[%clk 0:04:03.2]} 15. Kxe2 {[%clk 0:04:14]}
15... Ba6+ {[%clk 0:04:02.2]} 16. Kd1 {[%clk 0:04:06.1]} 16... Nd7 {[%clk
0:04:00.9]} 17. Kc2 {[%clk 0:04:01.1]} 17... Rfe8 {[%clk 0:03:58.8]} 18. Be3
{[%clk 0:03:47.5]} 18... Nb6 {[%clk 0:03:54.8]} 19. Rad1 {[%clk 0:03:42.7]}
19... Nc4 {[%clk 0:03:53.1]} 20. Rhe1 {[%clk 0:03:38.5]} 20... Rab8 {[%clk
0:03:50.3]} 21. Bc1 {[%clk 0:03:34.7]} 21... Kf8 {[%clk 0:03:38.4]} 22. Ng5
{[%clk 0:03:14.3]} 22... h6 {[%clk 0:03:29.6]} 23. Ne4 {[%clk 0:03:09.9]} 23...
f5 {[%clk 0:03:25.3]} 24. Bxh6+ {[%clk 0:02:57.6]} 24... Kf7 {[%clk 0:03:24.2]}
25. Ng5+ {[%clk 0:02:54.3]} 25... Kg8 {[%clk 0:03:19.9]} 26. Rxe8+ {[%clk
0:02:46.9]} 26... Rxe8 {[%clk 0:03:16.9]} 27. Ne6 {[%clk 0:02:44.3]} 27... Rb8
{[%clk 0:03:01.8]} 28. Bc1 {[%clk 0:02:32.5]} 28... Ne5 {[%clk 0:02:51.4]} 29.
f4 {[%clk 0:01:51.9]} 29... Nc4 {[%clk 0:02:43.9]} 30. g4 {[%clk 0:01:49]} 30...
Rb5 {[%clk 0:02:30]} 31. Nc7 {[%clk 0:01:39.3]} 31... Ra5 {[%clk 0:02:28.2]} 32.
Nxa6 {[%clk 0:01:34.4]} 32... Rxa6 {[%clk 0:02:27.2]} 33. Kb1 {[%clk 0:01:31.3]}
33... Na3+ {[%clk 0:02:23.9]} 34. Bxa3 {[%clk 0:01:29.4]} 34... Rxa3 {[%clk
0:02:23]} 35. Kb2 {[%clk 0:01:27.5]} 35... Ra4 {[%clk 0:02:22.2]} 36. Rf1 {[%clk
0:01:26.1]} 36... Re4 {[%clk 0:02:20.2]} 37. Rf3 {[%clk 0:01:22.9]} 37... Kf7
{[%clk 0:02:18.6]} 38. Kb3 {[%clk 0:01:21.2]} 38... Kf6 {[%clk 0:02:16.2]} 39.
c4 {[%clk 0:01:14.5]} 39... Rd4 {[%clk 0:02:13.2]} 40. Kc3 {[%clk 0:01:10.8]}
40... Re4 {[%clk 0:02:09.8]} 41. a4 {[%clk 0:01:08.8]} 41... a5 {[%clk
0:01:59.6]} 42. Kd3 {[%clk 0:01:06.2]} 42... Rd4+ {[%clk 0:01:48.2]} 43. Kc3
{[%clk 0:01:05.8]} 43... Re4 {[%clk 0:01:47.1]} 44. g5+ {[%clk 0:00:55.9]} 44...
Ke7 {[%clk 0:01:29.5]} 45. h4 {[%clk 0:00:55]} 45... Kf7 {[%clk 0:01:27.9]} 46.
Kd3 {[%clk 0:00:54]} 46... Rd4+ {[%clk 0:01:26.5]} 47. Kc3 {[%clk 0:00:53.5]}
47... Re4 {[%clk 0:01:25.6]} 48. Kd3 {[%clk 0:00:52.7]} 48... Rd4+ {[%clk
0:01:24.5]} 49. Kc3 {[%clk 0:00:52.3]} 49... Re4 {[%clk 0:01:23.5]} 1/2-1/2

[Event "Live Chess"]
[Site "Chess.com"]
[Date "2024.06.01"]
[Round "-"]
[White "elephantgerrald"]
[Black "hapehansen"]
[Result "0-1"]
[WhiteElo "756"]
[BlackElo "2245"]
[TimeControl "300"]
[EndTime "10:29:20 PDT"]
[Termination "hapehansen won by checkmate"]

1. e4 {[%clk 0:04:58.4]} 1... d5 {[%clk 0:04:56.6]} 2. exd5 {[%clk 0:04:57.3]}
2... Qxd5 {[%clk 0:04:55.6]} 3. Nc3 {[%clk 0:04:56.7]} 3... Qa5 {[%clk
0:04:54.9]} 4. d4 {[%clk 0:04:52.2]} 4... Nf6 {[%clk 0:04:54.2]} 5. Nf3 {[%clk
0:04:50.6]} 5... c6 {[%clk 0:04:48.5]} 6. Bf4 {[%clk 0:04:49.3]} 6... Bf5 {[%clk
0:04:46.2]} 7. Bd3 {[%clk 0:04:45.2]} 7... e6 {[%clk 0:04:40.7]} 8. Bxf5 {[%clk
0:04:42.9]} 8... Qxf5 {[%clk 0:04:38.7]} 9. O-O {[%clk 0:04:32.9]} 9... Qxf4
{[%clk 0:04:36.5]} 10. Ne5 {[%clk 0:04:30.6]} 10... Nbd7 {[%clk 0:04:29.5]} 11.
d5 {[%clk 0:04:24.5]} 11... Qxe5 {[%clk 0:04:24.3]} 12. dxe6 {[%clk 0:04:19.4]}
12... fxe6 {[%clk 0:04:22.9]} 13. Re1 {[%clk 0:04:14.1]} 13... Qf5 {[%clk
0:04:19.9]} 14. g4 {[%clk 0:04:10.7]} 14... Qxg4+ {[%clk 0:04:16.6]} 15. Qxg4
{[%clk 0:04:07.8]} 15... Nxg4 {[%clk 0:04:16.5]} 16. Rxe6+ {[%clk 0:04:06.5]}
16... Kf7 {[%clk 0:04:13.9]} 17. Re4 {[%clk 0:04:03.9]} 17... Ngf6 {[%clk
0:04:11.6]} 18. Rf4 {[%clk 0:04:01.9]} 18... Bd6 {[%clk 0:04:09.8]} 19. Rf3
{[%clk 0:03:59.7]} 19... Rhe8 {[%clk 0:04:05]} 20. Kg2 {[%clk 0:03:52.6]} 20...
Be5 {[%clk 0:04:02.5]} 21. Ne4 {[%clk 0:03:48.7]} 21... Kg8 {[%clk 0:03:57]} 22.
Nd6 {[%clk 0:03:44.8]} 22... Bxd6 {[%clk 0:03:55]} 23. h3 {[%clk 0:03:41.1]}
23... Ne5 {[%clk 0:03:52.7]} 24. Re3 {[%clk 0:03:36.5]} 24... Nd5 {[%clk
0:03:48.4]} 25. Rg3 {[%clk 0:03:33.9]} 25... Nf4+ {[%clk 0:03:44.5]} 26. Kf1
{[%clk 0:03:30.2]} 26... Rad8 {[%clk 0:03:40.2]} 27. Re1 {[%clk 0:03:26.1]}
27... Nc4 {[%clk 0:03:36.3]} 28. Rxe8+ {[%clk 0:03:22.3]} 28... Rxe8 {[%clk
0:03:34.6]} 29. b3 {[%clk 0:03:16.8]} 29... Nd2+ {[%clk 0:03:30.6]} 30. Kg1
{[%clk 0:03:15.5]} 30... Re1+ {[%clk 0:03:29.5]} 31. Kh2 {[%clk 0:03:14.1]}
31... Nd5 {[%clk 0:03:27.8]} 32. Kg2 {[%clk 0:03:11.6]} 32... Bxg3 {[%clk
0:03:25.8]} 33. Kxg3 {[%clk 0:03:10.6]} 33... Ra1 {[%clk 0:03:23.6]} 34. Kg4
{[%clk 0:03:09.1]} 34... Rxa2 {[%clk 0:03:22.2]} 35. Kf5 {[%clk 0:03:09]} 35...
Rxc2 {[%clk 0:03:20]} 36. Ke6 {[%clk 0:03:08.9]} 36... Nxb3 {[%clk 0:03:17]} 37.
Kd7 {[%clk 0:03:08.8]} 37... Nc5+ {[%clk 0:03:15.3]} 38. Kc8 {[%clk 0:03:07.6]}
38... Rxf2 {[%clk 0:03:11.5]} 39. Kb8 {[%clk 0:03:06.1]} 39... a5 {[%clk
0:03:02]} 40. Ka7 {[%clk 0:03:04.6]} 40... a4 {[%clk 0:02:59.7]} 41. Kb8 {[%clk
0:03:01.9]} 41... a3 {[%clk 0:02:58.5]} 42. Kc8 {[%clk 0:03:00.1]} 42... Rf8#
{[%clk 0:02:54.1]} 0-1

[Event "Live Chess"]
[Site "Chess.com"]
[Date "2024.06.01"]
[Round "-"]
[White "sshamil"]
[Black "jimwad"]
[Result "1-0"]
[WhiteElo "1686"]
[BlackElo "1241"]
[TimeControl "300"]
[EndTime "10:29:24 PDT"]
[Termination "sshamil won by resignation"]

1. e4 {[%clk 0:04:57.1]} 1... e5 {[%clk 0:04:59.2]} 2. f4 {[%clk 0:04:54.9]}
2... exf4 {[%clk 0:04:57.4]} 3. Nf3 {[%clk 0:04:54.1]} 3... g5 {[%clk
0:04:55.9]} 4. Bc4 {[%clk 0:04:50.9]} 4... Nf6 {[%clk 0:04:51.8]} 5. Nc3 {[%clk
0:04:48]} 5... d6 {[%clk 0:04:48.5]} 6. O-O {[%clk 0:04:45.9]} 6... Bg4 {[%clk
0:04:46.8]} 7. Re1 {[%clk 0:04:42.3]} 7... Nc6 {[%clk 0:04:36.5]} 8. h3 {[%clk
0:04:39]} 8... Bh5 {[%clk 0:04:32.1]} 9. e5 {[%clk 0:04:33.6]} 9... dxe5 {[%clk
0:04:28.9]} 10. d4 {[%clk 0:04:08.6]} 10... Bxf3 {[%clk 0:04:12.8]} 11. Qxf3
{[%clk 0:03:52.6]} 11... Qxd4+ {[%clk 0:04:11.3]} 12. Kh1 {[%clk 0:03:48.1]}
12... O-O-O {[%clk 0:04:05.9]} 13. Bxf7 {[%clk 0:03:43.2]} 13... Bd6 {[%clk
0:03:54.8]} 14. b3 {[%clk 0:03:38]} 14... h5 {[%clk 0:03:47.7]} 15. Bb2 {[%clk
0:03:35.6]} 15... Qb6 {[%clk 0:03:41.4]} 16. Na4 {[%clk 0:03:29.4]} 16... Qa6
{[%clk 0:03:36.6]} 17. Bc4 {[%clk 0:03:26.7]} 17... Qa5 {[%clk 0:03:31.7]} 18.
a3 {[%clk 0:03:16]} 18... b5 {[%clk 0:03:25.6]} 19. Bc3 {[%clk 0:03:10.9]} 19...
b4 {[%clk 0:03:20.2]} 20. Qxc6 {[%clk 0:03:01.7]} 20... bxc3 {[%clk 0:03:14.3]}
21. Ba6+ {[%clk 0:02:57.5]} 21... Qxa6 {[%clk 0:03:06.8]} 22. Qxa6+ {[%clk
0:02:56.1]} 22... Kd7 {[%clk 0:03:06.6]} 23. Qb5+ {[%clk 0:02:54.6]} 23... Ke7
{[%clk 0:03:02.9]} 24. Nc5 {[%clk 0:02:47.8]} 24... g4 {[%clk 0:02:57.1]} 25.
Ne4 {[%clk 0:02:45.1]} 25... Nxe4 {[%clk 0:02:55.1]} 26. Rxe4 {[%clk 0:02:43.5]}
26... gxh3 {[%clk 0:02:47.3]} 27. gxh3 {[%clk 0:02:42.2]} 27... Rhg8 {[%clk
0:02:42.4]} 28. Rae1 {[%clk 0:02:39.9]} 28... Rg5 {[%clk 0:02:39.3]} 29. Rxe5+
{[%clk 0:02:35.8]} 29... Rxe5 {[%clk 0:02:37]} 30. Rxe5+ {[%clk 0:02:34.6]}
30... Bxe5 {[%clk 0:02:35.9]} 31. Qxe5+ {[%clk 0:02:34.1]} 31... Kd7 {[%clk
0:02:33.1]} 32. Qf5+ {[%clk 0:02:33.2]} 32... Kc6 {[%clk 0:02:31.6]} 33. Qe4+
{[%clk 0:02:26.3]} 1-0

[Event "Live Chess"]
[Site "Chess.com"]
[Date "2024.06.01"]
[Round "-"]
[White "LL220284LL"]
[Black "WilliamofOrange16th"]
[Result "1-0"]
[WhiteElo "2582"]
[BlackElo "1949"]
[TimeControl "300"]
[EndTime "10:29:33 PDT"]
[Termination "LL220284LL won by resignation"]

1. e3 {[%clk 0:04:57.1]} 1... d6 {[%clk 0:04:55.7]} 2. b3 {[%clk 0:04:57]} 2...
e5 {[%clk 0:04:54.5]} 3. Bb2 {[%clk 0:04:56.7]} 3... f5 {[%clk 0:04:51]} 4. Ne2
{[%clk 0:04:54.9]} 4... Nf6 {[%clk 0:04:50.3]} 5. d3 {[%clk 0:04:54.2]} 5... Be6
{[%clk 0:04:48.8]} 6. c4 {[%clk 0:04:53.8]} 6... Nbd7 {[%clk 0:04:48]} 7. Nbc3
{[%clk 0:04:53.3]} 7... g6 {[%clk 0:04:47.4]} 8. Qc2 {[%clk 0:04:52.7]} 8... Bg7
{[%clk 0:04:46.9]} 9. h4 {[%clk 0:04:52]} 9... h5 {[%clk 0:04:44.6]} 10. g3
{[%clk 0:04:49.9]} 10... c6 {[%clk 0:04:42.4]} 11. Bg2 {[%clk 0:04:49.3]} 11...
Rc8 {[%clk 0:04:41.4]} 12. d4 {[%clk 0:04:48.1]} 12... O-O {[%clk 0:04:36.4]}
13. dxe5 {[%clk 0:04:46.9]} 13... dxe5 {[%clk 0:04:35.7]} 14. Rd1 {[%clk
0:04:44.2]} 14... Qe7 {[%clk 0:04:34]} 15. Qc1 {[%clk 0:04:40.7]} 15... Rfd8
{[%clk 0:04:32.2]} 16. Ba3 {[%clk 0:04:38.4]} 16... Qf7 {[%clk 0:04:31.6]} 17.
O-O {[%clk 0:04:35.1]} 17... e4 {[%clk 0:04:30.7]} 18. Nf4 {[%clk 0:04:32.1]}
18... Ne5 {[%clk 0:04:25.7]} 19. Na4 {[%clk 0:04:26.2]} 19... b6 {[%clk
0:04:23.2]} 20. Nc3 {[%clk 0:04:23]} 20... Nfg4 {[%clk 0:03:55.1]} 21. Nce2
{[%clk 0:04:10]} 21... Nf3+ {[%clk 0:03:43.4]} 22. Kh1 {[%clk 0:04:02.9]} 22...
c5 {[%clk 0:03:41.8]} 23. Bxf3 {[%clk 0:03:46.1]} 23... exf3 {[%clk 0:03:40.6]}
24. Ng1 {[%clk 0:03:38.3]} 24... Ne5 {[%clk 0:03:38]} 25. Bb2 {[%clk 0:03:35.4]}
25... Qe7 {[%clk 0:03:00.3]} 26. Bxe5 {[%clk 0:03:28.2]} 26... Bxe5 {[%clk
0:02:59.1]} 27. Nxg6 {[%clk 0:03:27.8]} 1-0

[Event "Live Chess"]
[Site "Chess.com"]
[Date "2024.06.01"]
[Round "-"]
[White "MellowAesthetic"]
[Black "McFim"]
[Result "1-0"]
[WhiteElo "2068"]
[BlackElo "1588"]
[TimeControl "300"]
[EndTime "10:29:36 PDT"]
[Termination "MellowAesthetic won by resignation"]

1. e4 {[%clk 0:04:58]} 1... c6 {[%clk 0:04:58.6]} 2. d4 {[%clk 0:04:56.4]} 2...
d5 {[%clk 0:04:57.9]} 3. exd5 {[%clk 0:04:56.3]} 3... cxd5 {[%clk 0:04:56.7]} 4.
c4 {[%clk 0:04:55.9]} 4... Nf6 {[%clk 0:04:54.8]} 5. Nc3 {[%clk 0:04:55]} 5...
e6 {[%clk 0:04:53.1]} 6. Nf3 {[%clk 0:04:54.2]} 6... Be7 {[%clk 0:04:51.5]} 7.
c5 {[%clk 0:04:53.6]} 7... b6 {[%clk 0:04:48.4]} 8. Bb5+ {[%clk 0:04:03.2]} 8...
Bd7 {[%clk 0:04:46.2]} 9. Bxd7+ {[%clk 0:04:01.7]} 9... Qxd7 {[%clk 0:04:42.8]}
10. Ne5 {[%clk 0:04:00.2]} 10... Qc8 {[%clk 0:04:35.6]} 11. Qa4+ {[%clk
0:03:46.9]} 11... Nfd7 {[%clk 0:04:30.5]} 12. cxb6 {[%clk 0:03:12.8]} 12... O-O
{[%clk 0:04:21.7]} 13. bxa7 {[%clk 0:02:56.1]} 13... Nxe5 {[%clk 0:04:12.6]} 14.
dxe5 {[%clk 0:02:36.2]} 14... Nc6 {[%clk 0:04:08.9]} 15. Be3 {[%clk 0:02:07.9]}
15... d4 {[%clk 0:03:54]} 16. Bxd4 {[%clk 0:02:06.6]} 16... Nxd4 {[%clk
0:03:51.1]} 17. Qxd4 {[%clk 0:02:06.5]} 17... Rxa7 {[%clk 0:03:48.7]} 18. Qxa7
{[%clk 0:02:05]} 1-0

[Event "Live Chess"]
[Site "Chess.com"]
[Date "2024.06.01"]
[Round "-"]
[White "Duke_of_Bebington"]
[Black "Bradfield133"]
[Result "1-0"]
[WhiteElo "1623"]
[BlackElo "1991"]
[TimeControl "300"]
[EndTime "10:29:42 PDT"]
[Termination "Duke_of_Bebington won on time"]

1. e4 {[%clk 0:04:57.8]} 1... c5 {[%clk 0:04:58]} 2. c3 {[%clk 0:04:56.6]} 2...
d5 {[%clk 0:04:55.8]} 3. exd5 {[%clk 0:04:55.6]} 3... Qxd5 {[%clk 0:04:55.5]} 4.
d4 {[%clk 0:04:55.2]} 4... Nc6 {[%clk 0:04:52]} 5. dxc5 {[%clk 0:04:51]} 5...
Qxc5 {[%clk 0:04:48.9]} 6. Nf3 {[%clk 0:04:46.1]} 6... Nf6 {[%clk 0:04:37.6]} 7.
Bd3 {[%clk 0:04:41]} 7... Bg4 {[%clk 0:04:31.8]} 8. h3 {[%clk 0:04:30.8]} 8...
Bh5 {[%clk 0:04:22.2]} 9. Be3 {[%clk 0:04:26.6]} 9... Qa5 {[%clk 0:04:15.1]} 10.
Nbd2 {[%clk 0:04:24.4]} 10... e6 {[%clk 0:04:08.5]} 11. Qb3 {[%clk 0:04:18.4]}
11... Qc7 {[%clk 0:03:57.9]} 12. O-O {[%clk 0:04:16.7]} 12... Be7 {[%clk
0:03:53.7]} 13. Rad1 {[%clk 0:04:11.2]} 13... O-O {[%clk 0:03:50.8]} 14. Rfe1
{[%clk 0:04:02.2]} 14... Rfd8 {[%clk 0:03:42.8]} 15. Bc4 {[%clk 0:03:54.7]}
15... Na5 {[%clk 0:03:37.8]} 16. Qa4 {[%clk 0:03:50]} 16... Bxf3 {[%clk
0:03:16.8]} 17. gxf3 {[%clk 0:03:46.2]} 17... Nxc4 {[%clk 0:03:04.1]} 18. Qxc4
{[%clk 0:03:44]} 18... Qxc4 {[%clk 0:02:59]} 19. Nxc4 {[%clk 0:03:43.4]} 19...
Nd5 {[%clk 0:02:49.4]} 20. Nd2 {[%clk 0:03:23.3]} 20... b6 {[%clk 0:02:24.8]}
21. a3 {[%clk 0:03:21.5]} 21... Rac8 {[%clk 0:02:20.2]} 22. Ne4 {[%clk
0:03:20.1]} 22... Nxe3 {[%clk 0:02:01.4]} 23. fxe3 {[%clk 0:03:18.2]} 23... f5
{[%clk 0:01:38.6]} 24. Nf2 {[%clk 0:03:01.5]} 24... Kf7 {[%clk 0:01:25.1]} 25.
Nd3 {[%clk 0:02:46.4]} 25... Bf6 {[%clk 0:01:23.5]} 26. Nf4 {[%clk 0:02:41.1]}
26... Rxd1 {[%clk 0:01:10.5]} 27. Rxd1 {[%clk 0:02:39.8]} 27... Rd8 {[%clk
0:01:09.5]} 28. Rxd8 {[%clk 0:02:35.2]} 28... Bxd8 {[%clk 0:01:07.8]} 29. Kf2
{[%clk 0:02:32.9]} 29... Bc7 {[%clk 0:01:01.2]} 30. Nd3 {[%clk 0:02:25.6]} 30...
e5 {[%clk 0:00:47.6]} 31. Nb4 {[%clk 0:02:22.1]} 31... Ke6 {[%clk 0:00:44.7]}
32. e4 {[%clk 0:02:20.4]} 32... fxe4 {[%clk 0:00:33.7]} 33. fxe4 {[%clk
0:02:19.4]} 33... Bd6 {[%clk 0:00:25.3]} 34. Nd5 {[%clk 0:02:17.6]} 34... Bc5+
{[%clk 0:00:19.5]} 35. Kf3 {[%clk 0:02:16.8]} 35... a5 {[%clk 0:00:17.6]} 36. b4
{[%clk 0:02:10.2]} 36... axb4 {[%clk 0:00:14.7]} 37. cxb4 {[%clk 0:02:07.3]}
37... Bd4 {[%clk 0:00:12.8]} 38. a4 {[%clk 0:02:06.2]} 38... h5 {[%clk
0:00:06.8]} 39. Nc7+ {[%clk 0:01:55.7]} 39... Kd7 {[%clk 0:00:03.3]} 40. Nd5
{[%clk 0:01:52.7]} 40... Ke6 {[%clk 0:00:01.9]} 41. a5 {[%clk 0:01:49.2]} 1-0